bitfinex/quotes_ETHUSD_20250328
["timestamp","ask_amount","ask_price","bid_price","bid_amount"]
[1743141367800,5.20048,1922.9,1922.6,1.04156353]
[1743141367993,5.20048,1922.9,1922.6,1.77256988]
[1743141368195,5.20048,1922.9,1922.5,6.26863]
[1743141368395,5.20048,1922.9,1922.5,1.0671]
[1743141368728,5.20048,1922.9,1922.5,6.26859]
[1743141368931,6.03624,1923.1,1922.6,5.20128]
[1743141369127,5.20014,1923.1,1922.6,5.25329084]
[1743141369334,5.19972,1923.2,1922.7,5.77833721]
[1743141369520,5.19972,1923.2,1922.8,6.24783]
[1743141369839,5.31672027,1923.1,1922.8,1.0471]
[1743141370435,0.11675027,1923.1,1922.9,5.20047]
[1743141370606,10.39905,1923.3,1922.8,6.24773]
[1743141370814,5.31535225,1923.2,1922.8,1.0471]
[1743141371013,5.31535225,1923.2,1922.8,7.49724361]
[1743141371225,5.31535225,1923.2,1922.8,7.44524191]
[1743141371425,5.31535225,1923.2,1922.8,7.49724361]
[1743141372536,5.31535225,1923.2,1922.8,7.44524191]
[1743141372734,0.11557225,1923.2,1922.8,7.49724362]
[1743141372933,0.11557225,1923.2,1922.9,0.74972436]
[1743141373154,0.11557225,1923.2,1922.9,5.95013436]
[1743141373309,0.11557225,1923.2,1923.0,6.31459]
[1743141373509,8.5977394,1923.6,1923.1,5.25174785]
[1743141373710,8.5977394,1923.6,1923.1,5.19975]
[1743141373914,8.5977394,1923.6,1923.2,0.519975]
[1743141374328,8.5977394,1923.6,1923.1,5.19975]
[1743141375026,8.5977394,1923.6,1923.1,35.2547425]
[1743141375224,6.03472,1923.6,1923.1,35.20275]
[1743141375439,5.19891,1923.5,1923.1,35.20275]
[1743141375650,6.03472,1923.6,1923.1,35.20275]
[1743141375953,4.75462727,1923.6,1923.2,3.520275]
[1743141376105,5.19887,1923.5,1923.2,3.520275]
[1743141376304,4.75462727,1923.6,1923.2,3.520275]
[1743141376609,9.95333727,1923.6,1923.2,3.520275]
[1743141376942,4.75462727,1923.6,1923.2,3.90801404]
[1743141377235,5.19656,1924.4,1923.9,5.19765]
[1743141377436,5.19656,1924.4,1924.0,1.0461]
[1743141377622,2.5630194,1924.6,1924.0,1.0461]
[1743141377836,5.19669,1924.3,1924.0,1.0461]
[1743141378804,10.39353,1924.3,1924.0,1.0461]
[1743141379007,5.19831,1923.8,1923.5,2.07975822]
[1743141379265,10.39729,1923.6,1923.3,1.0461]
[1743141379423,10.39743,1923.6,1923.3,1.0461]
[1743141379661,5.19858,1923.6,1923.3,1.0461]
[1743141380041,10.39743,1923.6,1923.3,1.0461]
[1743141380274,10.39728,1923.6,1923.3,1.0461]
[1743141380556,5.19858,1923.6,1923.3,1.0461]
[1743141381209,5.1983,1923.8,1923.3,1.0461]
[1743141381409,5.1983,1923.8,1923.4,5.19906]
[1743141381716,5.1983,1923.8,1923.4,5.82877517]
[1743141381943,10.39651,1923.8,1923.4,0.62971517]
[1743141382152,5.1984,1923.7,1923.4,0.62971517]
[1743141382459,5.1984,1923.7,1923.3,1.0461]
[1743141382623,5.1984,1923.7,1923.3,6.24534]
[1743141382953,5.19809,1923.8,1923.3,8.8082694]
[1743141383349,5.1975,1924.0,1923.6,1.0461]
[1743141383760,5.1975,1924.0,1923.6,20.79659898]
[1743141383914,5.1975,1924.0,1923.6,18.1456309]
[1743141384315,5.1975,1924.0,1923.6,23.3442009]
[1743141385716,5.1975,1924.0,1923.6,18.1456309]
[1743141385916,0.55,1924.0,1923.4,1.1218]
[1743141386148,5.19834,1923.7,1923.4,1.17378495]
[1743141386449,5.19807,1923.8,1923.4,1.17378495]
[1743141386781,0.12033664,1923.6,1923.4,1.17378495]
[1743141386952,5.19807,1923.8,1923.4,6.37286495]
[1743141387245,0.12033664,1923.7,1923.4,7.53007044]
[1743141387648,5.19816,1923.8,1923.4,7.53007044]
[1743141387945,0.12033664,1923.7,1923.4,1.17378495]
[1743141388145,0.12033664,1923.7,1923.4,1.1218]
[1743141388332,0.12033664,1923.7,1923.4,1.17378498]
[1743141388649,5.31865664,1923.7,1923.4,1.1218]
[1743141388838,0.12033664,1923.7,1923.4,1.17378505]
[1743141389148,5.31867664,1923.7,1923.4,1.1218]
[1743141389313,0.12033664,1923.7,1923.4,1.1218]
[1743141389509,0.12033664,1923.7,1923.5,14.5]
[1743141389710,5.19816,1923.8,1923.5,14.5]
[1743141389947,0.12413654,1923.6,1923.5,14.5]
[1743141390151,5.19852,1923.7,1923.4,1.1218]
[1743141390358,5.19869,1923.6,1923.4,1.1218]
[1743141390555,5.32282654,1923.6,1923.4,15.6218]
[1743141391256,0.12413654,1923.6,1923.5,1.0186]
[1743141391458,6.0099852,1924.8,1923.8,5.19779]
[1743141391637,10.39372,1924.3,1923.9,1.0186]
[1743141392158,5.1968,1924.3,1923.9,1.0186]
[1743141392362,5.19647,1924.4,1923.9,6.21637]
[1743141392926,5.1968,1924.3,1923.9,6.21637]
[1743141393129,5.19699,1924.2,1923.9,1.41790844]
[1743141393328,10.39419,1924.2,1923.9,1.41790844]
[1743141393574,5.19699,1924.2,1923.9,1.41790844]
[1743141393934,5.19699,1924.2,1924.0,14.5]
[1743141394640,5.19699,1924.2,1923.9,1.41790844]
[1743141395161,5.19699,1924.2,1923.9,15.91790844]
[1743141396385,5.19725,1924.1,1923.9,15.91790844]
[1743141396581,5.19776,1924.0,1923.8,29.99]
[1743141396780,5.19777,1923.9,1923.8,29.99]
[1743141398899,8.41491717,1923.9,1923.8,29.99]
[1743141399393,5.85189777,1923.9,1923.8,29.99]
[1743141403359,5.30189777,1923.9,1923.8,29.99]
[1743141403797,0.10412777,1923.9,1923.8,29.99]
[1743141404961,5.30189777,1923.9,1923.8,29.99]
[1743141405488,0.10412777,1923.9,1923.8,29.99]
[1743141405701,0.10412777,1923.9,1923.6,5.19857]
[1743141405908,5.19723,1924.1,1923.7,6.774807]
[1743141406104,0.10466329,1924.0,1923.7,11.972957]
[1743141406306,10.3944,1924.2,1923.8,14.5]
[1743141406501,0.10466329,1924.1,1923.8,14.5]
[1743141406713,10.3944,1924.2,1923.8,14.5]
[1743141406714,5.19709,1924.2,1923.8,14.5]
[1743141407005,5.30200329,1924.1,1923.8,14.5]
[1743141407204,0.10466329,1924.1,1923.7,1.0568]
[1743141407411,5.19772,1924.0,1923.7,1.0568]
[1743141407568,5.1978,1923.9,1923.7,1.0568]
[1743141407770,5.19837,1923.7,1923.5,31.0236]
[1743141408205,0.10503811,1923.6,1923.5,31.0236]
[1743141408574,5.19837,1923.7,1923.5,31.0236]
[1743141409091,0.10503811,1923.6,1923.5,29.991]
[1743141409712,10.39594,1923.9,1923.5,38.54473901]
[1743141409871,0.10503811,1923.8,1923.5,38.54473901]
[1743141410072,5.19808,1923.8,1923.5,33.34588901]
[1743141410273,0.10503811,1923.7,1923.5,33.34588901]
[1743141410509,0.10503811,1923.7,1923.5,3.35488901]
[1743141410686,0.10503811,1923.7,1923.4,7.7620094]
[1743141410885,0.10503811,1923.7,1923.3,36.67825088]
[1743141410886,5.30335811,1923.7,1923.3,36.67825088]
[1743141411385,5.30335811,1923.7,1923.4,14.5]
[1743141413021,5.19885,1923.5,1923.4,14.5]
[1743141413239,5.19976,1923.2,1923.0,1.131]
[1743141413531,5.19933,1923.4,1923.0,1.131]
[1743141413834,5.1995,1923.3,1923.1,14.5]
[1743141414720,5.1995,1923.3,1923.0,1.131]
[1743141414924,5.19886,1923.5,1923.0,1.131]
[1743141414925,5.19918,1923.4,1923.0,8.8942094]
[1743141415324,10.39853,1923.4,1923.1,14.5]
[1743141415838,10.39846,1923.4,1923.1,14.5]
[1743141416041,5.19943,1923.3,1923.1,14.5]
[1743141416603,5.19966,1923.2,1923.1,14.5]
[1743141417139,5.2002,1923.0,1922.9,29.991]
[1743141417436,5.2002,1923.0,1922.5,1.0849]
[1743141417437,5.20101,1922.7,1922.5,1.0849]
[1743141417609,5.20078,1922.8,1922.5,1.0849]
[1743141417813,5.20132,1922.6,1922.3,4.03993022]
[1743141418023,5.2021,1922.3,1922.2,29.994]
[1743141419236,5.2021,1922.3,1922.1,0.05]
[1743141419237,8.75237,1922.2,1922.1,0.05]
[1743141419395,11.3153894,1922.2,1922.1,0.05]
[1743141419596,14.7623552,1922.2,1922.1,0.05]
[1743141419836,17.3253746,1922.2,1922.1,0.05]
[1743141421021,17.6063451,1922.2,1922.1,0.05]
[1743141422515,5.20426,1921.5,1921.4,29.994]
[1743141422920,5.20426,1921.5,1921.4,44.494]
[1743141423414,5.20426,1921.5,1921.4,29.994]
[1743141423840,5.20426,1921.5,1921.4,44.494]
[1743141425014,10.40825,1921.6,1921.4,44.494]
[1743141425211,5.20426,1921.5,1921.4,29.994]
[1743141425450,1.0468644,1921.9,1921.4,34.0483]
[1743141425755,5.20258,1922.2,1921.7,5.20357]
[1743141425938,5.2021,1922.4,1921.5,14.55203535]
[1743141425939,10.4041,1922.4,1922.0,1.0549]
[1743141426120,5.20224,1922.3,1922.0,1.0549]
[1743141426317,5.20241,1922.2,1922.0,1.0549]
[1743141426818,5.20264,1922.1,1922.0,1.0549]
[1743141427249,5.20241,1922.2,1922.0,1.0549]
[1743141427440,5.20212,1922.3,1922.0,1.0549]
[1743141428459,5.20264,1922.1,1922.0,1.0549]
[1743141428749,5.20256,1922.2,1921.8,6.24784]
[1743141428929,5.20214,1922.3,1921.9,0.624784]
[1743141429120,5.20214,1922.3,1921.8,11.45109]
[1743141429317,5.20214,1922.3,1921.9,5.20315]
[1743141429517,5.20214,1922.3,1921.8,11.45095]
[1743141429717,5.20241,1922.2,1921.8,6.6382473]
[1743141429917,5.2027,1922.1,1921.8,1.4349973]
[1743141430233,5.20241,1922.2,1921.8,6.69042494]
[1743141430431,5.20216,1922.3,1921.8,11.89363494]
[1743141430627,10.40451,1922.3,1921.8,11.8415473]
[1743141430836,10.40451,1922.3,1921.8,13.02570203]
[1743141431044,10.40451,1922.3,1921.8,7.82236203]
[1743141431248,5.20216,1922.3,1921.9,5.20313]
[1743141431434,5.20195,1922.4,1921.9,10.40614]
[1743141431752,15.2959751,1922.6,1921.9,10.40614]
[1743141431753,5.20131,1922.6,1922.0,1.0397]
[1743141431952,5.20131,1922.6,1922.1,5.20248]
[1743141432264,5.20189,1922.4,1922.0,1.0397]
[1743141432421,5.2021,1922.3,1922.0,1.0397]
[1743141433440,10.40431,1922.3,1922.0,1.0397]
[1743141433755,5.2021,1922.3,1922.0,1.0397]
[1743141434960,5.20183,1922.4,1922.0,6.866764]
[1743141435469,5.20075,1922.8,1922.4,5.20177]
[1743141435772,2.8439899,1923.0,1922.3,31.0957]
[1743141435953,5.20155,1922.6,1922.3,31.0957]
[1743141436138,5.20146,1922.6,1922.3,31.47706387]
[1743141436467,5.20156,1922.5,1922.3,31.47706387]
[1743141436828,10.40288,1922.6,1922.3,31.47706387]
[1743141437029,5.20144,1922.6,1922.3,31.47706387]
[1743141437751,5.20161,1922.5,1922.3,31.0957]
[1743141438955,5.20183,1922.4,1922.3,30.015]
[1743141440568,8.0452899,1922.6,1922.1,1.0452]
[1743141440569,5.20213,1922.3,1922.1,1.0452]
[1743141440766,5.20237,1922.2,1922.0,30.013]
[1743141441065,5.20147,1922.6,1922.2,1.101]
[1743141441269,5.20115,1922.7,1922.2,6.30336]
[1743141441433,5.20076,1922.8,1922.3,5.202]
[1743141441769,5.20032,1923.0,1922.7,1.0335]
[1743141441979,5.19978,1923.2,1922.7,6.23425]
[1743141442135,5.19939,1923.3,1922.9,5.20045]
[1743141442483,11.2082052,1923.8,1922.9,5.20045]
[1743141442484,5.19846,1923.7,1923.2,5.19952]
[1743141442636,5.19872,1923.6,1923.3,1.0335]
[1743141442969,0.05,1923.9,1923.3,1.43331444]
[1743141443135,3.0,1923.8,1923.3,6.63250444]
[1743141443337,0.05,1923.9,1923.5,1.0526]
[1743141443536,0.05,1923.9,1923.0,41.09919]
[1743141443537,0.05,1923.9,1923.0,35.2132]
[1743141443847,5.19871,1923.6,1923.1,6.25233]
[1743141444042,5.19817,1923.8,1923.3,5.19923]
[1743141444247,5.24783,1923.9,1923.4,6.25157]
[1743141444443,5.24783,1923.9,1923.4,6.2516]
[1743141444644,0.05,1923.9,1923.6,5.19837]
[1743141444969,0.05,1923.9,1923.8,5.19804]
[1743141445169,5.19577,1924.7,1924.2,5.19691]
[1743141445357,5.19529,1924.9,1923.8,14.915]
[1743141445358,5.19507,1924.9,1924.4,5.1963]
[1743141445563,5.19543,1924.8,1924.3,36.806671]
[1743141445759,2.9595073,1925.2,1924.5,5.196]
[1743141445962,0.1155174,1925.2,1924.3,45.5348109]
[1743141446149,0.1155174,1925.2,1924.5,8.0399499]
[1743141446473,5.19496,1925.0,1924.8,1.0273]
[1743141446671,0.1155174,1925.2,1924.8,1.0273]
[1743141447173,0.1155174,1925.2,1924.9,2.8439899]
[1743141447470,0.1155174,1925.2,1924.8,1.0273]
[1743141447672,5.19505,1925.0,1924.8,1.0273]
[1743141447879,5.19533,1924.9,1924.7,6.03]
[1743141448048,10.3893,1925.1,1924.7,6.03]
[1743141448256,5.3099174,1925.2,1924.7,6.03]
[1743141448467,0.10379997,1925.0,1924.9,1.0741]
[1743141448771,0.1155174,1925.2,1924.9,1.12604358]
[1743141448974,0.1155174,1925.2,1925.0,5.19469]
[1743141449172,0.1155174,1925.2,1925.1,5.19453]
[1743141449341,0.05,1925.9,1925.5,5.19339]
[1743141449542,0.05,1925.9,1925.4,30.0]
[1743141449543,5.19345,1925.5,1925.4,30.0]
[1743141450082,5.19345,1925.5,1924.9,1.034]
[1743141450083,5.1948,1925.0,1924.9,1.034]
[1743141450242,5.19534,1924.8,1924.7,29.991]
[1743141450443,8.0393299,1924.8,1924.7,29.991]
[1743141450855,5.19616,1924.5,1924.2,1.0236]
[1743141451288,5.19669,1924.3,1924.2,1.0236]
[1743141451454,5.19696,1924.2,1924.0,29.991]
[1743141451658,5.19723,1924.1,1924.0,33.09771]
[1743141452390,5.19723,1924.1,1924.0,29.991]
[1743141452765,5.19777,1923.9,1923.3,31.0942]
[1743141452953,5.19777,1923.9,1923.3,29.989]
[1743141452954,5.19912,1923.4,1923.3,29.989]
[1743141453153,8.19912,1923.4,1923.3,29.989]
[1743141453566,3.0,1922.8,1922.6,1.1052]
[1743141453900,3.0,1922.8,1922.6,4.80252]
[1743141454184,8.20128,1922.6,1922.5,29.989]
[1743141454414,8.20128,1922.6,1922.1,0.05]
[1743141454415,3.0,1922.2,1922.1,0.05]
[1743141454598,8.20184,1922.4,1922.1,0.05]
[1743141454754,8.20145,1922.6,1922.1,5.25252]
[1743141454959,8.20145,1922.6,1922.1,0.05]
[1743141454960,3.0,1922.4,1922.1,0.05]
[1743141455175,5.20237,1922.2,1922.1,0.575266]
[1743141455391,8.20237,1922.2,1922.1,0.05]
[1743141455685,8.20237,1922.2,1922.1,0.6]
[1743141456306,8.20237,1922.2,1922.1,0.05]
[1743141457390,14.08137,1922.2,1922.1,0.05]
[1743141458977,8.20237,1922.2,1922.1,0.05]
[1743141459509,3.0,1922.2,1922.1,0.6]
[1743141459705,5.20161,1922.5,1922.2,0.55]
[1743141459908,5.2021,1922.3,1922.2,0.55]
[1743141460071,8.2021,1922.3,1922.2,0.55]
[1743141460791,8.20237,1922.2,1922.1,0.05]
[1743141463177,5.20188,1922.4,1922.1,0.05]
[1743141463376,10.40395,1922.4,1922.1,0.05]
[1743141463573,5.20188,1922.4,1922.1,0.05]
[1743141463803,8.20223,1922.3,1922.1,0.05]
[1743141464490,5.20237,1922.2,1922.1,0.6]
[1743141465608,5.20237,1922.2,1922.1,0.05]
[1743141469207,5.20223,1922.3,1922.1,0.05]
[1743141469920,5.20237,1922.2,1922.1,0.05]
[1743141471693,5.20223,1922.3,1922.1,0.05]
[1743141471927,5.20145,1922.6,1922.2,6.24836]
[1743141472120,0.1248,1922.8,1922.3,0.624836]
[1743141472324,5.20182,1922.5,1922.2,1.0461]
[1743141472790,5.20183,1922.4,1922.2,1.0461]
[1743141472991,5.20182,1922.5,1922.2,1.0461]
[1743141472992,10.4036,1922.5,1922.2,1.0461]
[1743141473198,5.20178,1922.5,1922.2,1.0461]
[1743141473402,5.2017,1922.5,1922.2,1.0461]
[1743141473932,5.2017,1922.5,1922.2,1.681171]
[1743141474134,10.40348,1922.5,1922.2,1.681171]
[1743141474446,10.40348,1922.5,1922.2,1.0461]
[1743141475859,5.20198,1922.4,1922.2,1.0461]
[1743141476038,5.20237,1922.2,1922.1,0.05]
[1743141482457,5.20183,1922.4,1922.1,1.1069]
[1743141482962,5.20232,1922.3,1922.1,1.1069]
[1743141483115,10.40464,1922.3,1922.1,1.1069]
[1743141483316,10.40464,1922.3,1922.1,0.05]
[1743141483317,5.20237,1922.2,1922.1,0.05]
[1743141488120,5.32517,1922.2,1922.1,0.05]
[1743141489854,8.32517,1922.2,1922.1,0.05]
[1743141493973,8.32517,1922.2,1922.1,1e-05]
[1743141494325,14.3351552,1922.2,1922.1,1e-05]
[1743141494774,5.20426,1921.5,1921.4,30.016]
[1743141495072,8.04763038,1921.5,1921.4,30.016]
[1743141495925,5.20535,1921.1,1921.0,1.1108]
[1743141496939,5.20535,1921.1,1920.8,0.55]
[1743141497163,5.20535,1921.1,1920.8,1.6511]
[1743141497363,5.20509,1921.2,1920.8,6.85714]
[1743141497565,5.20509,1921.2,1920.8,11.10497714]
[1743141498256,10.4104,1921.2,1920.8,11.10497714]
[1743141498450,5.20509,1921.2,1920.8,11.10497714]
[1743141498945,5.20373,1921.7,1921.1,0.55]
[1743141499280,10.79074609,1922.0,1921.6,6.30775]
[1743141499475,10.40623,1922.0,1921.6,6.30775]
[1743141500068,5.20318,1921.9,1921.6,6.30775]
[1743141500591,5.20311,1922.0,1921.6,6.30775]
[1743141500766,5.20328,1921.9,1921.6,1.1038]
[1743141500972,5.20311,1922.0,1921.6,1.155835]
[1743141501262,11.07365,1922.1,1921.7,19.70371]
[1743141501463,11.07365,1922.1,1921.7,14.5]
[1743141501667,5.20345,1921.8,1921.7,14.5]
[1743141501850,10.40851,1921.6,1921.3,2.04172326]
[1743141502265,5.20425,1921.6,1921.4,14.5]
[1743141502808,5.20372,1921.7,1921.4,14.5]
[1743141503099,10.4077,1921.7,1921.4,14.5]
[1743141503317,5.20401,1921.6,1921.3,1.0943]
[1743141503994,5.20453,1921.4,1921.3,1.0943]
[1743141504169,5.20453,1921.4,1921.1,1.0214]
[1743141504487,5.20487,1921.3,1921.1,1.0214]
[1743141504686,5.20453,1921.4,1921.1,1.0214]
[1743141504865,5.20417,1921.6,1921.2,5.25692155]
[1743141505062,10.40838,1921.6,1921.2,5.25692155]
[1743141505267,10.40838,1921.6,1921.3,14.5]
[1743141505659,5.20417,1921.6,1921.3,14.5]
[1743141505858,5.20417,1921.6,1921.2,5.20487]
[1743141506060,5.20444,1921.5,1921.1,8.299438]
[1743141506260,5.20438,1921.5,1921.1,8.299438]
[1743141506472,5.20438,1921.5,1921.2,14.5]
[1743141507311,5.20438,1921.5,1921.2,16.7799308]
[1743141507723,5.204,1921.6,1921.2,21.9850008]
[1743141508084,5.2044,1921.5,1921.2,16.7799308]
[1743141508523,5.204,1921.6,1921.2,21.9849708]
[1743141510625,5.204,1921.6,1921.2,21.9848808]
[1743141510789,5.204,1921.6,1921.2,27.1897808]
[1743141510992,10.40659,1921.9,1921.5,5.20425]
[1743141511393,5.20346,1921.8,1921.5,5.20425]
[1743141511610,5.20346,1921.8,1921.4,6.25584]
[1743141511611,5.20346,1921.8,1921.6,14.5]
[1743141512088,10.40659,1921.9,1921.6,14.5]
[1743141512284,5.20318,1921.9,1921.6,14.5]
[1743141513717,5.20387,1921.7,1921.4,1.0515]
[1743141513922,5.20426,1921.5,1921.4,1.0515]
[1743141514893,5.20409,1921.6,1921.4,1.0515]
[1743141515221,5.20373,1921.7,1921.4,1.0515]
[1743141515611,10.40767,1921.7,1921.4,1.0515]
[1743141516694,5.204,1921.6,1921.4,1.0515]
[1743141517927,5.20446,1921.5,1921.2,15.569]
[1743141518228,5.20468,1921.4,1921.2,15.569]
[1743141518994,5.20418,1921.6,1921.2,15.569]
[1743141519398,5.20428,1921.5,1921.2,20.77403]
[1743141520437,5.20418,1921.6,1921.2,23.371947]
[1743141520605,10.40841,1921.6,1921.2,23.371947]
[1743141520805,5.20438,1921.5,1921.2,15.569]
[1743141521434,5.20438,1921.5,1921.0,37.18936343]
[1743141521606,5.20438,1921.5,1921.1,5.20534]
[1743141522932,5.20457,1921.4,1921.2,14.5]
[1743141523346,5.20508,1921.2,1921.0,31.048]
[1743141523542,8.04872038,1921.1,1921.0,30.025]
[1743141525604,5.20616,1920.8,1920.7,14.5]
[1743141525857,2.84337038,1921.1,1920.7,14.5]
[1743141525858,10.41147,1921.0,1920.7,14.5]
[1743141526208,5.2059,1920.9,1920.7,14.5]
[1743141526609,5.20558,1921.1,1920.7,14.5]
[1743141526810,5.20591,1920.9,1920.7,14.5]
[1743141527439,5.20616,1920.8,1920.5,1.0234]
[1743141527934,5.20616,1920.8,1920.5,15.5234]
[1743141529313,10.41204,1920.9,1920.5,15.5234]
[1743141529528,5.20621,1920.8,1920.5,15.5234]
[1743141531045,5.2067,1920.6,1920.5,14.5]
[1743141531414,5.2067,1920.6,1920.3,31.1422]
[1743141531821,5.2067,1920.6,1920.4,14.5]
[1743141532021,5.20697,1920.5,1920.3,31.1422]
[1743141532222,5.20675,1920.6,1920.3,31.1422]
[1743141532419,5.20714,1920.5,1920.3,31.1422]
[1743141533224,5.20638,1920.8,1920.3,32.51621931]
[1743141533427,5.20638,1920.8,1920.3,37.72360931]
[1743141533723,10.41327,1920.7,1920.3,32.51621931]
[1743141533929,5.20688,1920.6,1920.4,14.5]
[1743141534524,10.41384,1920.6,1920.4,14.5]
[1743141534729,5.20724,1920.4,1920.3,31.1422]
[1743141534933,5.20724,1920.4,1920.3,30.029]
[1743141535842,5.20724,1920.4,1920.1,0.05]
[1743141535843,5.20768,1920.3,1920.1,0.05]
[1743141536272,5.20779,1920.2,1920.1,0.05]
[1743141538094,5.33139,1920.2,1920.1,1e-05]
[1743141538272,11.3413752,1920.2,1920.1,1e-05]
[1743141538853,17.2033752,1920.2,1920.1,1e-05]
[1743141539884,11.3413752,1920.2,1920.1,1e-05]
[1743141540195,17.2043752,1920.2,1920.1,1e-05]
[1743141540994,20.2043752,1920.2,1920.1,1e-05]
[1743141541854,20.60407509,1920.2,1920.1,1e-05]
[1743141545398,11.3413752,1920.2,1920.1,1e-05]
[1743141545577,17.2033752,1920.2,1920.1,1e-05]
[1743141545778,20.04674558,1920.2,1920.1,1e-05]
[1743141548948,5.20744,1920.4,1920.1,1.07751]
[1743141549154,5.20779,1920.2,1920.1,1.07751]
[1743141550208,8.05116038,1920.2,1920.1,1e-05]
[1743141551023,11.05116038,1920.2,1920.1,1e-05]
[1743141552627,11.06779,1920.2,1920.1,1e-05]
[1743141552807,11.2176652,1920.3,1920.1,1.03941]
[1743141555709,6.0099852,1920.3,1920.1,1.03941]
[1743141556036,11.2175252,1920.3,1920.1,1.03941]
[1743141556217,5.20779,1920.2,1920.1,1.03941]
[1743141557213,8.05116038,1920.2,1920.1,1e-05]
[1743141557413,5.20779,1920.2,1920.1,1e-05]
[1743141557657,5.20754,1920.3,1920.1,1e-05]
[1743141558158,5.20585,1921.0,1920.4,1.0571]
[1743141558363,6.0099852,1921.2,1920.7,5.20631]
[1743141558524,1.05052802,1921.4,1920.9,1.0571]
[1743141558724,1.05052802,1921.4,1920.7,1.1057]
[1743141558725,5.20641,1920.8,1920.7,1.1057]
[1743141558922,5.20597,1920.9,1920.7,1.1057]
[1743141559122,5.2067,1920.6,1920.5,31.1557]
[1743141559324,5.20651,1920.7,1920.5,32.51504706]
[1743141559674,5.20644,1920.7,1920.5,32.51504706]
[1743141560024,5.20591,1920.9,1920.5,32.51504706]
[1743141560218,8.20584,1921.0,1920.5,31.1557]
[1743141560647,5.20577,1921.0,1920.5,31.1557]
[1743141560847,5.20577,1921.0,1920.5,36.36266]
[1743141561049,5.20545,1921.1,1920.6,5.20656]
[1743141561256,5.20545,1921.1,1920.6,9.363482]
[1743141561565,2.84337038,1921.3,1920.6,9.363482]
[1743141561566,5.20493,1921.3,1920.7,6.25274]
[1743141561762,14.06131,1921.2,1920.7,1.0465]
[1743141561944,5.20546,1921.1,1920.7,1.0465]
[1743141562126,10.41099,1921.1,1920.7,1.0465]
[1743141562464,10.41097,1921.1,1920.7,1.0465]
[1743141562644,5.20546,1921.1,1920.7,1.0465]
[1743141562835,5.20576,1921.0,1920.7,1.0465]
[1743141563154,5.20538,1921.1,1920.7,1.0465]
[1743141564330,16.26644,1921.2,1920.7,1.0465]
[1743141564541,5.20543,1921.1,1920.7,1.0465]
[1743141565234,10.41096,1921.1,1920.7,1.0465]
[1743141565434,5.20562,1921.0,1920.7,1.0465]
[1743141566451,10.411,1921.1,1920.7,1.0465]
[1743141566631,5.20543,1921.1,1920.7,1.0465]
[1743141566831,10.41089,1921.1,1920.7,1.0465]
[1743141568161,5.20543,1921.1,1920.7,1.0465]
[1743141569032,10.4109,1921.1,1920.7,1.0465]
[1743141569332,10.41091,1921.1,1920.7,1.0465]
[1743141569661,5.20563,1921.0,1920.7,1.0465]
[1743141570060,5.20638,1920.8,1920.5,31.068]
[1743141570261,5.20638,1920.8,1920.5,1.018]
[1743141570449,5.20657,1920.7,1920.2,1.018]
[1743141570767,10.41316,1920.7,1920.2,6.848337]
[1743141571062,5.20657,1920.7,1920.2,6.848337]
[1743141571263,11.05857,1920.7,1920.2,6.848337]
[1743141571441,16.26512,1920.7,1920.2,6.848337]
[1743141571641,5.852,1920.7,1920.2,1.640587]
[1743141571880,5.20696,1920.6,1920.2,1.018]
[1743141572065,10.41392,1920.6,1920.2,1.018]
[1743141572246,10.41378,1920.6,1920.2,1.018]
[1743141574246,5.20682,1920.6,1920.2,1.018]
[1743141574652,10.41375,1920.6,1920.2,1.018]
[1743141575260,5.20714,1920.5,1920.2,1.018]
[1743141578162,5.20714,1920.5,1920.1,1e-05]
[1743141578163,5.20779,1920.2,1920.1,1e-05]
[1743141579541,11.05779,1920.2,1920.1,1e-05]
[1743141580575,13.62864051,1920.2,1920.1,1e-05]
[1743141580977,11.05779,1920.2,1920.1,1e-05]
[1743141581182,13.62864051,1920.2,1920.1,1e-05]
[1743141581678,16.62864051,1920.2,1920.1,1e-05]
[1743141582268,16.75674051,1920.2,1920.1,1e-05]
[1743141590286,22.76672571,1920.2,1920.1,1e-05]
[1743141592689,30.82557622,1920.2,1920.1,1e-05]
[1743141593585,31.08932067,1920.2,1920.1,1e-05]
[1743141595001,31.63932067,1920.2,1920.1,1e-05]
[1743141597790,31.63932067,1920.2,1919.4,0.1155174]
[1743141597791,5.20969,1919.5,1919.4,0.1155174]
[1743141597969,22.63652571,1919.5,1919.4,0.1155174]
[1743141598410,22.63652571,1919.5,1919.4,7.4e-06]
[1743141598567,30.82347622,1919.5,1919.4,7.4e-06]
[1743141598760,28.25262571,1919.5,1919.4,7.4e-06]
[1743141599159,28.80262571,1919.5,1919.4,7.4e-06]
[1743141599387,31.37347622,1919.5,1919.4,7.4e-06]
[1743141600196,31.37347622,1919.5,1918.8,1.0777]
[1743141600197,5.21131,1918.9,1918.8,1.0324574]
[1743141600400,5.21322,1918.2,1918.1,0.05]
[1743141600564,5.21303,1918.3,1918.1,0.05]
[1743141600764,5.21322,1918.2,1918.1,0.05]
[1743141601302,7.78407051,1918.2,1918.1,0.05]
[1743141601869,10.78407051,1918.2,1918.1,0.05]
[1743141602802,16.79405571,1918.2,1918.1,1e-05]
[1743141603102,16.96735571,1918.2,1918.1,1e-05]
[1743141603303,16.96735571,1918.2,1917.5,0.1155174]
[1743141603304,5.21485,1917.6,1917.5,0.1155174]
[1743141603473,19.64168571,1917.6,1917.5,0.1155174]
[1743141605904,17.0698352,1917.6,1917.5,0.1155174]
[1743141607396,20.0698352,1917.6,1917.5,0.1155174]